bitfinex/quotes_ETHUSD_20251125
["timestamp","ask_amount","ask_price","bid_price","bid_amount"]
[1764028802155,1.70408647,2958.5,2958.4,0.001]
[1764028802317,2.73673462,2958.5,2958.4,0.001]
[1764028802516,24.84802362,2958.5,2958.4,0.001]
[1764028802847,23.90302362,2958.5,2958.4,0.001]
[1764028803014,23.90302362,2958.5,2958.1,0.001]
[1764028803216,20.898308,2958.2,2958.1,0.001]
[1764028803438,20.51696781,2958.2,2958.1,0.001]
[1764028803718,17.95600581,2958.2,2958.1,0.001]
[1764028804020,4.31281481,2958.2,2958.1,0.001]
[1764028804257,4.17088655,2958.2,2958.1,0.001]
[1764028804551,4.28611494,2958.2,2958.1,0.001]
[1764028805317,0.31538247,2958.2,2958.1,0.4587]
[1764028805551,0.4937,2958.2,2958.1,0.001]
[1764028805857,0.9812,2958.2,2958.1,0.13649607]
[1764028806019,1.29580989,2958.2,2958.1,0.001]
[1764028806541,0.31460989,2958.2,2958.1,0.6568]
[1764028806750,0.214,2958.4,2958.1,0.6568]
[1764028807116,0.4937,2958.2,2958.1,0.001]
[1764028807655,0.214,2958.2,2958.1,0.4587]
[1764028808977,0.7077,2958.2,2958.1,0.001]
[1764028809182,1.1952,2958.2,2958.1,0.001]
[1764028809687,1.65274064,2958.2,2958.1,0.001]
[1764028809854,9.54516256,2958.2,2958.1,0.001]
[1764028810055,9.08762192,2958.2,2958.1,0.001]
[1764028810690,9.08758721,2958.2,2958.1,0.001]
[1764028812066,5.29547721,2958.2,2958.1,0.001]
[1764028812251,9.30502721,2958.2,2958.1,0.001]
[1764028812575,6.56400403,2958.2,2958.1,0.001]
[1764028812748,3.18356999,2958.2,2958.1,0.001]
[1764028812948,1.91504317,2958.2,2958.1,0.001]
[1764028813148,5.29547721,2958.2,2958.1,0.001]
[1764028813966,7.56552521,2958.2,2958.1,0.001]
[1764028814560,7.70107225,2958.2,2958.1,0.001]
[1764028818674,35.43102425,2958.2,2958.1,0.001]
[1764028818865,31.65216024,2958.2,2958.1,0.001]
[1764028819753,38.78071524,2958.2,2958.1,0.001]
[1764028819965,39.50388346,2958.2,2958.1,0.001]
[1764028821976,0.405504,2958.1,2958.0,0.001]
[1764028822157,35.37285971,2958.1,2958.0,0.001]
[1764028822360,38.7225507,2958.1,2958.0,0.001]
[1764028824160,39.10607585,2958.1,2958.0,0.001]
[1764028824885,40.14492479,2958.1,2958.0,0.001]
[1764028826708,11.0593932,2958.1,2958.0,0.001]
[1764028826864,12.3494892,2958.1,2958.0,0.001]
[1764028827064,9.40530221,2958.1,2958.0,0.001]
[1764028827280,8.99979821,2958.1,2958.0,0.001]
[1764028827610,9.40530221,2958.1,2958.0,0.001]
[1764028827812,23.64285221,2958.1,2958.0,0.001]
[1764028828510,21.57957221,2958.1,2958.0,0.001]
[1764028828999,20.71163521,2958.1,2958.0,0.001]
[1764028829158,19.43719221,2958.1,2958.0,0.001]
[1764028829568,17.91423315,2958.1,2958.0,0.001]
[1764028829766,11.14314815,2958.1,2958.0,0.001]
[1764028829965,13.67214315,2958.1,2958.0,0.001]
[1764028830166,11.99494815,2958.1,2958.0,0.001]
[1764028830371,12.0917378,2958.1,2958.0,0.001]
[1764028831002,38.4392258,2958.1,2958.0,0.001]
[1764028831503,37.6726498,2958.1,2958.0,0.001]
[1764028831698,37.4586498,2958.1,2958.0,0.001]
[1764028831888,8.34243615,2958.1,2958.0,0.001]
[1764028832097,34.57191486,2958.1,2958.0,0.001]
[1764028832280,34.47512521,2958.1,2958.0,0.001]
[1764028832599,34.57191486,2958.1,2958.0,0.001]
[1764028833118,35.81923086,2958.1,2958.0,0.001]
[1764028833322,31.92478686,2958.1,2958.0,0.001]
[1764028833520,34.41606185,2958.1,2958.0,0.001]
[1764028833727,32.07673685,2958.1,2958.0,0.001]
[1764028833904,31.9799472,2958.1,2958.0,0.001]
[1764028834092,39.16892185,2958.1,2958.0,0.001]
[1764028835605,30.405504,2958.0,2957.8,0.001]
[1764028835821,35.41609203,2957.9,2957.8,0.001]
[1764028836060,35.87079203,2957.9,2957.8,0.001]
[1764028836353,36.00637353,2957.9,2957.8,0.001]
[1764028836851,36.00618171,2957.9,2957.8,0.001]
[1764028837049,39.38695861,2957.9,2957.8,0.001]
[1764028837947,31.41027661,2957.9,2957.8,0.001]
[1764028838154,32.47970781,2957.9,2957.8,0.001]
[1764028839048,32.99801981,2957.9,2957.8,0.001]
[1764028839440,29.13198381,2957.9,2957.8,0.001]
[1764028839751,25.43617861,2957.9,2957.8,0.001]
[1764028840135,33.14366581,2957.9,2957.8,0.001]
[1764028840737,31.97192381,2957.9,2957.8,0.001]
[1764028840940,29.96292381,2957.9,2957.8,0.001]
[1764028841152,10.50555281,2957.9,2957.8,0.001]
[1764028841351,24.47290482,2957.9,2957.8,0.001]
[1764028841650,20.49968282,2957.9,2957.8,0.001]
[1764028842152,13.64586182,2957.9,2957.8,0.001]
[1764028842323,19.04108017,2957.9,2957.8,0.001]
[1764028842525,18.35048597,2957.9,2957.8,0.001]
[1764028842855,21.46520923,2957.9,2957.8,0.001]
[1764028843156,15.23060123,2957.9,2957.8,0.001]
[1764028843470,42.61754143,2957.9,2957.8,0.001]
[1764028843844,42.52075178,2957.9,2957.8,0.001]
[1764028844148,42.61754143,2957.9,2957.8,0.001]
[1764028845443,43.65134943,2957.9,2957.8,0.001]
[1764028846243,44.37694354,2957.9,2957.8,0.001]
[1764028846448,46.86078954,2957.9,2957.8,0.001]
[1764028847156,45.95619534,2957.9,2957.8,0.001]
[1764028847356,15.95619534,2957.9,2957.8,0.001]
[1764028847543,45.95619534,2957.9,2957.8,0.001]
[1764028847742,38.86199234,2957.9,2957.8,0.001]
[1764028848042,40.22398404,2957.9,2957.8,0.001]
[1764028848533,45.42549004,2957.9,2957.8,0.001]
[1764028848738,44.28421904,2957.9,2957.8,0.001]
[1764028848940,39.10645234,2957.9,2957.8,0.001]
[1764028849440,46.86348704,2957.9,2957.8,0.001]
[1764028849859,47.16731162,2957.9,2957.8,0.001]
[1764028850045,45.95619534,2957.9,2957.8,0.001]
[1764028851362,23.32960534,2957.9,2957.8,0.001]
[1764028851572,33.22175246,2957.9,2957.8,0.001]
[1764028851768,32.31402234,2957.9,2957.8,0.001]
[1764028852446,15.95619534,2957.9,2957.8,0.001]
[1764028852764,32.68542234,2957.9,2957.8,0.001]
[1764028853547,45.82416034,2957.9,2957.8,0.001]
[1764028854467,31.22788776,2957.8,2957.7,0.001]
[1764028854775,37.19318747,2957.8,2957.7,0.001]
[1764028854966,37.09639782,2957.8,2957.7,0.001]
[1764028855138,37.19318747,2957.8,2957.7,0.001]
[1764028855464,40.57407867,2957.8,2957.7,0.001]
[1764028855969,37.88268652,2957.8,2957.7,0.001]
[1764028856532,9.66618552,2957.8,2957.7,0.001]
[1764028856738,39.66618552,2957.8,2957.7,0.001]
[1764028858797,40.14548552,2957.8,2957.7,0.001]
[1764028859679,10.14548552,2957.8,2957.7,0.001]
[1764028859985,40.14548552,2957.8,2957.7,0.001]
[1764028861193,41.3566018,2957.8,2957.7,0.001]
[1764028862797,40.14548552,2957.8,2957.7,0.001]
[1764028864095,41.3566018,2957.8,2957.7,0.001]
[1764028864264,31.13109811,2957.7,2957.6,0.001]
[1764028864465,37.69937943,2957.7,2957.6,0.001]
[1764028864658,7.69937943,2957.7,2957.6,0.001]
[1764028864859,38.18107943,2957.7,2957.6,0.001]
[1764028865273,37.69937943,2957.7,2957.6,0.001]
[1764028865468,35.54170043,2957.7,2957.6,0.001]
[1764028865689,38.92270594,2957.7,2957.6,0.001]
[1764028865886,39.87109983,2957.7,2957.6,0.001]
[1764028866091,1.13109811,2957.6,2957.5,0.001]
[1764028866355,1.13109811,2957.6,2956.0,0.1989]
[1764028866356,0.405504,2956.6,2956.0,0.6806]
[1764028866582,0.405504,2956.4,2956.0,0.6806]
[1764028866800,0.90640327,2956.8,2956.1,0.4817]
[1764028866801,0.405504,2956.2,2956.1,0.4817]
[1764028867004,0.71965135,2956.2,2956.1,0.4817]
[1764028867293,0.71965135,2956.2,2956.1,0.4681]
[1764028867784,4.82796652,2956.2,2956.1,0.4681]
[1764028867955,5.67042373,2956.2,2956.1,0.4681]
[1764028868163,0.72559411,2956.1,2955.7,0.4817]
[1764028868428,0.405504,2955.9,2955.7,0.4817]
[1764028868694,0.619504,2955.8,2955.7,0.4817]
[1764028869204,0.405504,2955.7,2955.2,0.4817]
[1764028869494,0.31370675,2955.6,2955.2,0.1922]
[1764028869717,0.405504,2955.4,2955.3,0.4817]
[1764028870105,1.13109811,2955.4,2955.3,0.9498]
[1764028870307,1.13109811,2955.4,2955.2,0.1922]
[1764028870618,1.13109811,2955.4,2954.8,0.1981]
[1764028870619,0.405504,2955.2,2954.8,0.6798]
[1764028870817,0.52734004,2955.1,2954.9,0.4817]
[1764028871331,0.619504,2955.1,2955.0,0.4681]
[1764028871825,1.13109811,2955.1,2955.0,0.9498]
[1764028872116,1.34509811,2955.1,2955.0,0.9498]
[1764028872494,4.72907834,2955.1,2955.0,0.9498]
[1764028873116,1.34509811,2955.1,2955.0,0.9498]
[1764028873315,4.72907834,2955.1,2955.0,0.4681]
[1764028873491,4.72907834,2955.1,2954.3,0.13058168]
[1764028873492,0.405504,2954.6,2954.3,0.13058168]
[1764028873691,6.332726,2954.4,2954.3,0.13058168]
[1764028873894,6.332726,2954.4,2953.7,0.4817]
[1764028873895,3.34682211,2954.3,2953.7,0.4817]
[1764028874216,3.34682211,2954.3,2954.1,0.0497]
[1764028874217,5.56323311,2954.2,2954.1,0.0497]
[1764028874394,1.34509811,2954.2,2954.1,0.0497]
[1764028874594,1.34509811,2954.2,2954.1,0.5178]
[1764028874794,2.34989159,2954.2,2954.1,0.5178]
[1764028875004,0.405504,2954.0,2953.7,0.4817]
[1764028875181,0.72559411,2954.1,2952.7,0.1922]
[1764028875182,0.049,2953.6,2952.7,0.1922]
[1764028875382,0.8476138,2953.5,2952.7,0.6739]
[1764028875586,0.405504,2953.4,2952.7,0.6739]
[1764028875818,0.405504,2953.4,2952.8,0.4817]
[1764028876017,0.405504,2953.2,2952.8,0.4817]
[1764028876218,0.38672103,2953.7,2953.3,0.1922]
[1764028876511,0.215,2953.6,2953.4,0.4926]
[1764028876910,0.620504,2953.6,2953.5,0.4675]
[1764028877113,0.405504,2953.6,2953.5,0.4675]
[1764028877313,0.620504,2953.6,2953.5,0.9601]
[1764028879412,0.405504,2953.6,2953.5,0.9601]
[1764028879618,0.620504,2953.6,2953.5,0.9601]
[1764028879824,0.405504,2953.6,2953.5,0.9601]
[1764028880213,0.620504,2953.6,2953.5,0.9601]
[1764028880613,0.620504,2953.6,2953.5,0.4675]
[1764028881316,0.620504,2953.6,2953.5,0.9602]
[1764028881934,0.405504,2953.6,2953.5,0.9602]
[1764028882094,0.72559411,2954.4,2953.5,0.9602]
[1764028882299,18.518201,2954.6,2954.3,0.4536]
[1764028882631,0.4596,2954.9,2954.3,0.4536]
[1764028882632,19.80427411,2954.4,2954.3,0.4536]
[1764028882932,0.405504,2954.2,2953.8,0.4927]
[1764028883455,1.13109811,2954.2,2954.1,0.4536]
[1764028883606,0.405504,2954.2,2954.1,0.4536]
[1764028883925,0.620504,2954.2,2953.8,0.4927]
[1764028884533,0.620504,2954.2,2953.3,0.1922]
[1764028884700,0.620504,2954.2,2953.4,0.4927]
[1764028884900,0.620504,2954.2,2953.3,0.1922]
[1764028884901,0.405504,2954.0,2953.3,0.1922]
[1764028885103,0.405504,2954.0,2953.3,0.6849]
[1764028885429,9.832826,2954.2,2953.9,0.4536]
[1764028885620,4.11056596,2954.3,2953.4,0.4927]
[1764028885621,0.405504,2954.0,2953.4,0.4927]
[1764028886528,1.13109811,2954.0,2953.9,0.4536]
[1764028886728,0.405504,2954.0,2953.3,0.1922]
[1764028886929,1.13109811,2954.0,2953.3,0.6849]
[1764028887101,11.380108,2953.9,2953.3,0.6849]
[1764028887309,1.5840652,2953.8,2953.3,0.1922]
[1764028887531,0.405504,2953.6,2953.3,0.1922]
[1764028888647,1.13109811,2953.6,2953.3,0.1922]
[1764028888851,0.405504,2953.6,2953.5,0.4536]
[1764028889135,0.58541052,2953.6,2953.5,0.4536]
[1764028890218,0.405504,2953.6,2953.5,0.4536]
[1764028890413,0.405504,2953.6,2952.8,0.001]
[1764028890414,0.405504,2953.4,2952.8,0.001]
[1764028890638,0.405504,2953.1,2952.8,0.001]
[1764028891022,0.405504,2953.1,2953.0,0.4536]
[1764028892331,0.65647236,2953.1,2953.0,0.4536]
[1764028892822,0.87147236,2953.1,2953.0,0.4536]
[1764028893064,0.87147236,2953.1,2953.0,0.9463]
[1764028893222,0.87147236,2953.1,2953.0,0.4536]
[1764028893413,1.78147236,2953.1,2952.8,0.001]
[1764028893626,0.464204,2952.9,2952.8,0.001]
[1764028893838,1.104104,2952.9,2952.8,0.001]
[1764028894215,5.21619951,2952.9,2952.8,0.001]
[1764028894531,1.82969811,2952.9,2952.8,0.001]
[1764028895158,5.21619951,2952.9,2952.8,0.001]
[1764028895396,6.18855047,2952.9,2952.8,0.001]
[1764028895541,3.26164907,2952.9,2952.8,0.001]
[1764028895741,2.35592346,2952.9,2952.8,0.001]
[1764028895959,5.74242486,2952.9,2952.8,0.001]
[1764028896163,28.52229786,2952.9,2952.8,0.001]
[1764028896679,5.06391946,2952.9,2952.8,0.001]
[1764028896845,9.31552486,2952.9,2952.8,0.001]
[1764028897045,27.10118343,2952.9,2952.8,0.001]
[1764028897241,24.12266943,2952.9,2952.8,0.001]
[1764028897441,24.84448462,2952.9,2952.8,0.001]
[1764028897748,24.94127427,2952.9,2952.8,0.001]
[1764028898178,30.29552068,2952.9,2952.8,0.001]
[1764028898380,30.21514843,2952.9,2952.8,0.001]
[1764028898593,27.91490843,2952.9,2952.8,0.001]
[1764028898884,25.73090843,2952.9,2952.8,0.001]
[1764028899093,3.42537303,2952.9,2952.8,0.001]
[1764028899386,1.65732346,2952.9,2952.8,0.4546]
[1764028899586,0.31122535,2952.9,2952.8,0.4546]
[1764028899790,0.215,2952.9,2952.8,0.4546]
[1764028900378,0.71672935,2953.0,2952.8,0.9473]
[1764028900692,0.52622535,2952.9,2952.8,0.4937]
[1764028901044,0.52622535,2952.9,2952.8,0.9473]
[1764028901446,0.31122535,2952.9,2952.8,0.9473]
[1764028901648,0.1803,2954.1,2952.8,0.9473]
[1764028901649,1.03106882,2953.7,2952.8,0.9473]
[1764028901870,0.31122535,2953.6,2952.9,0.4927]
[1764028902096,0.215,2953.6,2952.9,0.4927]
[1764028902311,0.72007361,2954.0,2953.5,0.6512]
[1764028902517,1.36117619,2954.3,2953.5,0.1976]
[1764028902518,0.3128693,2953.9,2953.5,0.1976]
[1764028902808,0.3128693,2953.9,2953.5,0.6903]
[1764028902809,0.3128693,2953.8,2953.5,0.6903]
[1764028903105,0.3128693,2953.7,2953.5,0.1976]
[1764028903281,0.215,2953.9,2953.5,0.1976]
[1764028903282,0.3128693,2953.6,2953.5,0.1976]
[1764028903666,0.3128693,2953.6,2953.5,0.6512]
[1764028903865,0.3128693,2953.6,2953.3,0.1976]
[1764028904066,0.9333733,2953.5,2953.3,0.1976]
[1764028904268,0.405504,2953.1,2952.8,0.001]
[1764028904514,0.405504,2952.9,2952.8,0.001]
[1764028904694,0.7183733,2952.9,2952.8,0.001]
[1764028905268,1.1687733,2952.9,2952.8,0.001]
[1764028906106,5.39906741,2952.9,2952.8,0.001]
[1764028906310,8.78556881,2952.9,2952.8,0.001]
[1764028906509,10.03394339,2952.9,2952.8,0.001]
[1764028906871,26.59008139,2952.9,2952.8,0.001]
[1764028907969,27.59347339,2952.9,2952.8,0.001]
[1764028908512,27.59347339,2952.9,2952.1,0.1976]
[1764028908694,1.13109811,2952.5,2951.9,0.4927]
[1764028908900,1.22788776,2952.7,2951.9,0.4927]
[1764028908901,0.405504,2952.3,2951.9,0.4927]
[1764028909072,0.5278693,2952.4,2951.9,0.4927]
[1764028909073,0.405504,2952.1,2951.9,0.4927]
[1764028909273,0.5278693,2952.0,2951.9,0.4927]
[1764028909813,0.5278693,2952.0,2951.9,0.9811]
[1764028910936,0.9333733,2952.0,2951.9,0.4884]
[1764028911141,0.405504,2951.9,2951.5,0.462]
[1764028911295,0.3128693,2951.8,2951.5,0.462]
[1764028911498,0.3128693,2951.8,2951.3,0.1976]
[1764028911722,0.3128693,2951.8,2951.3,0.6596]
[1764028912297,0.3128693,2951.8,2951.0,0.462]
[1764028912298,0.405504,2951.7,2951.0,0.462]
[1764028912629,0.405504,2951.5,2950.9,0.1976]
[1764028912827,0.405504,2951.3,2950.9,0.1976]
[1764028913027,0.5278693,2951.2,2950.6,0.1891]
[1764028913227,0.405504,2951.1,2950.6,0.6511]
[1764028913598,0.405504,2951.1,2951.0,0.4884]
[1764028914234,0.875704,2951.1,2950.2,0.72559411]
[1764028914437,0.875704,2951.1,2949.3,3.39059281]
[1764028914438,0.405504,2950.7,2949.3,3.39059281]
[1764028914732,0.72559411,2950.4,2949.9,0.6626]
[1764028914938,1.17037008,2950.3,2949.9,0.6626]
[1764028915119,0.52782535,2950.2,2949.9,0.6134]
[1764028915430,0.215,2950.2,2949.9,0.6134]
[1764028915605,0.85754473,2950.3,2950.2,0.4884]
[1764028915804,0.620504,2950.3,2950.2,0.9401]
[1764028916104,0.60355485,2950.3,2950.2,0.9401]
[1764028916298,0.60355485,2950.3,2950.2,0.4884]
[1764028916525,0.50998875,2950.3,2950.2,0.9401]
[1764028916928,0.6366,2951.5,2950.2,0.9401]
[1764028917110,0.6366,2951.5,2949.9,0.1514]
[1764028917111,0.52716283,2951.4,2950.3,0.4517]
[1764028917308,0.72559411,2951.0,2950.0,0.4517]
[1764028917509,0.72559411,2950.8,2950.0,0.4517]
[1764028917737,0.215,2950.9,2950.0,0.4517]
[1764028917938,0.52701935,2950.9,2950.0,0.4517]
[1764028918237,0.31201935,2950.9,2950.0,0.4517]
[1764028918534,0.405504,2950.7,2950.0,0.4527]
[1764028918738,0.405504,2950.5,2950.0,0.4527]
[1764028919200,1.12387265,2950.5,2950.0,0.4527]
[1764028919940,0.215,2950.4,2950.0,0.4527]
[1764028920341,0.620504,2950.4,2950.3,0.4647]
[1764028920808,0.405504,2950.4,2950.3,0.9164]
[1764028921214,0.620504,2950.4,2950.3,0.9164]
[1764028922641,0.405504,2950.3,2950.0,0.001]
[1764028922941,0.85167477,2950.3,2950.0,0.001]
[1764028923144,4.24116255,2950.3,2950.0,0.001]
[1764028923656,0.857404,2950.1,2950.0,0.001]
[1764028923864,1.26567324,2950.1,2950.0,0.001]
[1764028924031,32.98346587,2950.1,2950.0,0.001]
[1764028924218,36.33315686,2950.1,2950.0,0.001]
[1764028924550,19.25924469,2950.1,2950.0,0.001]
[1764028924713,16.15734894,2950.1,2950.0,0.001]
[1764028924920,16.15834894,2950.1,2950.0,0.001]
[1764028925157,30.82967894,2950.1,2950.0,0.001]
[1764028926125,39.39947394,2950.1,2950.0,0.001]
[1764028927149,21.98615094,2950.1,2950.0,0.001]
[1764028927427,11.64830329,2950.1,2950.0,0.001]
[1764028927627,8.39540195,2950.1,2950.0,0.001]
[1764028928229,10.02830695,2950.1,2950.0,0.001]
[1764028928473,9.71682736,2950.1,2950.0,0.001]
[1764028929257,35.73830336,2950.1,2950.0,0.001]
[1764028929566,36.27770188,2950.1,2950.0,0.001]
[1764028929764,39.62739287,2950.1,2950.0,0.001]
[1764028930542,39.08799435,2950.1,2950.0,0.001]
[1764028930770,22.95989335,2950.1,2950.0,0.001]
[1764028930929,23.17589335,2950.1,2950.0,0.001]
[1764028931129,38.9912047,2950.1,2950.0,0.001]
[1764028931473,11.3324107,2950.1,2950.0,0.001]
[1764028931763,4.56720971,2950.1,2950.0,0.001]
[1764028931972,7.98184071,2950.1,2950.0,0.001]
[1764028932168,9.43084071,2950.1,2950.0,0.001]
[1764028932369,8.66820971,2950.1,2950.0,0.001]
[1764028932578,9.07371371,2950.1,2950.0,0.001]
[1764028932769,10.40994226,2950.1,2950.0,0.001]
[1764028933080,10.86274226,2950.1,2950.0,0.001]
[1764028933385,37.07453191,2950.1,2950.0,0.001]
[1764028933837,36.97774226,2950.1,2950.0,0.001]
[1764028934040,37.61393043,2950.1,2950.0,0.001]
[1764028934256,7.92416587,2950.1,2950.0,0.001]
[1764028934543,37.92416587,2950.1,2950.0,0.001]
[1764028934783,37.38476735,2950.1,2950.0,0.001]
[1764028935083,37.38476735,2950.1,2949.9,0.003]
[1764028935084,31.22788776,2950.0,2949.9,0.003]
[1764028935291,38.96974469,2950.0,2949.9,0.003]
[1764028935441,40.16192069,2950.0,2949.9,0.003]
[1764028936164,0.405504,2949.1,2948.7,0.1976]
[1764028936442,0.402504,2948.9,2948.5,0.1326562]
[1764028936667,0.216,2948.8,2948.5,0.5843562]
[1764028936975,0.4528,2949.3,2948.5,0.1326562]
[1764028937141,0.72559411,2948.9,2948.5,0.1326562]
[1764028937348,15.663428,2948.7,2948.5,0.1326562]
[1764028937548,13.080905,2948.7,2948.5,0.1326562]
[1764028937876,0.72559411,2948.6,2948.5,0.1326562]
[1764028938040,2.06635,2948.6,2948.5,0.1326562]
[1764028938479,2.471854,2948.6,2948.5,0.1326562]
[1764028938663,24.10696042,2948.6,2948.5,0.1326562]
[1764028939244,26.88202842,2948.6,2948.5,0.1326562]
[1764028939445,5.19110442,2948.6,2948.5,0.5973562]
[1764028939677,5.19110442,2948.6,2948.5,0.1326562]
[1764028939846,14.15530942,2948.6,2948.5,0.1326562]
[1764028940280,0.1838,2949.5,2948.5,0.1326562]
[1764028940281,6.7805804,2949.6,2948.5,1.0649562]
[1764028940466,6.7805804,2949.6,2948.7,0.456]
[1764028940467,0.52708783,2949.5,2948.7,0.456]
[1764028940647,0.405504,2949.4,2948.7,0.456]
[1764028940847,0.216,2949.3,2949.0,0.1836]
[1764028941243,3.60663506,2949.3,2949.0,0.1836]
[1764028941447,1.08625762,2949.2,2949.0,0.1836]
[1764028941773,0.405504,2949.1,2949.0,0.1836]
[1764028942147,0.405504,2949.1,2949.0,0.6396]
[1764028942578,0.621504,2949.1,2949.0,1.1159]
[1764028942877,0.405504,2949.1,2949.0,0.6396]
[1764028943060,1.13109811,2949.2,2949.0,1.1159]
[1764028943379,1.13109811,2949.2,2949.1,0.9323]
[1764028943604,1.34709811,2949.2,2949.1,0.9323]
[1764028944359,1.65916273,2949.2,2949.1,0.9323]
[1764028944557,0.71756862,2949.2,2949.1,0.9323]
[1764028944886,0.621504,2949.2,2949.1,0.9323]
[1764028945074,0.216,2949.2,2949.1,0.9323]
[1764028945279,0.621504,2949.2,2949.1,0.9323]
[1764028945476,0.621504,2949.2,2949.1,0.456]
[1764028945658,0.621504,2949.2,2949.1,0.9323]
[1764028947593,0.621504,2949.2,2948.6,0.4763]
[1764028947594,1.13109811,2949.1,2948.6,0.4763]
[1764028948093,1.13109811,2949.1,2949.0,0.456]
[1764028948283,1.34709811,2949.1,2949.0,0.456]
[1764028948472,1.34709811,2949.1,2949.0,0.9323]
[1764028948666,1.81659811,2949.1,2948.5,0.1326562]
[1764028948868,0.405504,2948.9,2948.5,0.1326562]
[1764028949071,0.31246246,2948.8,2948.5,0.6089562]
[1764028949391,0.52846246,2948.8,2948.5,0.1326562]
[1764028949595,1.13109811,2948.6,2948.5,0.1326562]
[1764028949771,0.71796646,2948.6,2948.5,0.6089562]
[1764028950090,0.71796646,2948.6,2948.5,0.5886562]
[1764028950489,0.71796646,2948.6,2948.5,1.0649562]
[1764028950980,0.71796646,2948.6,2948.5,0.5886562]
[1764028951177,1.56216525,2948.6,2948.5,0.1326562]
[1764028951384,1.56216525,2948.6,2948.5,0.5886562]
[1764028951575,0.71796646,2948.6,2948.5,1.0649562]
[1764028951976,0.216,2948.6,2948.5,1.0649562]
[1764028952574,0.31257594,2949.0,2948.5,1.0649562]
[1764028952869,0.216,2948.9,2948.6,0.4763]
[1764028953069,0.216,2948.8,2948.6,0.4763]
[1764028953393,6.7809875,2949.5,2948.6,0.4763]
[1764028953394,0.216,2948.7,2948.6,0.4763]
[1764028953786,0.216,2948.7,2948.6,0.9323]
[1764028954495,0.405504,2948.6,2948.5,0.1326562]
[1764028954705,0.405504,2949.2,2948.6,0.9323]
[1764028954928,0.31314814,2949.1,2948.7,0.4763]
[1764028955102,0.405504,2949.0,2948.7,0.4763]
[1764028955286,0.31312292,2948.9,2948.7,0.4763]
[1764028955611,0.216,2948.8,2948.7,0.4763]
[1764028956125,0.216,2948.8,2948.7,0.9323]
[1764028959224,0.621504,2948.8,2948.7,0.9323]
[1764028959392,0.93462692,2948.8,2948.7,0.9323]
[1764028959935,0.93462692,2948.8,2948.7,0.456]
[1764028960244,0.93462692,2948.8,2948.7,0.9323]
[1764028960595,0.93462692,2948.8,2948.5,0.1336562]
[1764028960797,0.621504,2948.8,2948.7,0.456]
[1764028961124,0.93455094,2948.8,2948.7,0.456]
[1764028961321,0.93455094,2948.8,2948.7,0.9323]
[1764028961521,1.66014505,2948.8,2948.7,0.456]
[1764028962040,5.05135503,2948.8,2948.7,0.456]
[1764028962345,0.405504,2948.7,2948.5,0.1336562]
[1764028962540,0.875004,2948.6,2948.5,0.1336562]
[1764028962706,1.18805094,2948.6,2948.5,0.1336562]
[1764028963050,0.71855094,2948.6,2948.5,0.5896562]
[1764028963252,0.71855094,2948.6,2948.5,1.0659562]
[1764028963461,0.71855094,2948.6,2948.5,0.5896562]
[1764028963760,0.71855094,2948.6,2948.5,1.0659562]
[1764028963913,0.93455094,2948.6,2948.5,0.1336562]
[1764028964114,5.89584171,2948.6,2948.5,0.1336562]
[1764028964314,6.36534171,2948.6,2948.5,0.1336562]
[1764028964915,6.83784171,2948.6,2948.5,0.1336562]
[1764028965119,6.36534171,2948.6,2948.5,0.1336562]
[1764028965319,5.89584171,2948.6,2948.5,0.1336562]
[1764028965945,5.89584171,2948.6,2948.5,0.5896562]
[1764028966337,5.67984171,2948.6,2948.5,0.5896562]
[1764028966541,5.89584171,2948.6,2948.5,0.5896562]
[1764028967342,2.28840171,2948.6,2948.5,0.5896562]
[1764028967640,1.44414505,2948.6,2948.5,1.0659562]
[1764028967950,0.94159411,2948.6,2948.5,1.0659562]
[1764028969139,1.34709811,2948.6,2948.5,1.0659562]
[1764028969846,0.94159411,2948.6,2948.5,1.0659562]
[1764028970411,0.216,2948.6,2948.5,1.0659562]
[1764028970910,0.3133212,2948.7,2948.5,1.0659562]
[1764028971115,0.216,2948.6,2948.5,0.1336562]
[1764028971631,0.216,2948.6,2948.5,1.1080562]
[1764028971944,0.621504,2948.6,2948.5,1.1080562]
[1764028972143,0.216,2948.6,2948.5,1.1080562]
[1764028972310,0.31333919,2948.8,2948.5,1.1080562]
[1764028972510,0.72559411,2949.5,2948.6,0.4855]
[1764028972511,1.03522301,2949.2,2948.6,0.4855]
[1764028972710,3.39008846,2949.8,2949.4,0.1948]
[1764028972908,1.9769652,2949.7,2949.4,0.6803]
[1764028973127,1.03537109,2949.6,2949.4,0.6803]
[1764028973328,1.03537109,2949.6,2949.1,0.4855]
[1764028973329,0.405504,2949.4,2949.1,0.4855]
[1764028973529,0.52938312,2949.3,2948.5,0.1336562]
[1764028973755,0.216,2949.3,2948.5,0.6191562]
[1764028974146,0.621504,2949.3,2949.2,0.6837]
[1764028974459,0.93483851,2949.3,2949.2,0.6837]
[1764028974650,0.93483851,2949.3,2949.2,1.1692]
[1764028975230,0.52933451,2949.3,2949.2,1.1692]
[1764028975829,0.216,2949.3,2949.2,1.1692]
[1764028976048,0.31326926,2949.5,2949.2,1.1692]
[1764028976226,0.31326926,2949.7,2949.3,0.4697]
[1764028976435,0.4932,2950.3,2949.3,0.4697]
[1764028976436,0.216,2949.6,2949.3,0.4697]
[1764028976851,0.216,2949.6,2949.5,0.4844]
[1764028977256,0.218,2949.6,2949.5,0.9541]
[1764028977476,0.002,2949.6,2949.5,0.9541]
[1764028978331,0.407504,2949.6,2949.2,0.1948]
[1764028978564,0.407504,2949.6,2949.2,0.6645]
[1764028978764,0.002,2949.6,2949.5,0.4844]
[1764028978952,0.218,2949.6,2949.5,0.4844]
[1764028979876,0.218,2949.6,2948.5,0.1336562]